fUST/lending_fUST_20260306
["ID","MTS","AMOUNT","RATE_DAILY","PERIOD"]
[407777635,1772793044935,-459.42450454,6.914e-05,3]
[407777636,1772793044944,-2279.58969571,6.936e-05,3]
[407777637,1772793044953,-355.667278,6.959e-05,2]
[407777638,1772793044962,-406.47688914,6.959e-05,2]
[407777639,1772793044971,-634.48501915,6.959e-05,2]
[407777640,1772793044980,-207.79242386,6.959e-05,2]
[407777641,1772793044990,-374.02636295,6.959e-05,2]
[407777642,1772793044999,-664.93575636,6.959e-05,2]
[407777643,1772793045009,-1037.9231572,6.959e-05,2]
[407777644,1772793045018,-477.58660348,6.976e-05,2]
[407777645,1772793045028,-423.53843758,6.976e-05,2]
[407777646,1772793045037,-500.0,6.976e-05,2]
[407777647,1772793045047,-250.50713449,6.987e-05,3]
[407777648,1772793045058,-718.7938299,6.987e-05,3]
[407777649,1772793045068,-5253.9411475,7e-05,2]
[407777650,1772793045078,-305.96138761,7.061e-05,2]
[407777651,1772793045090,-2674.60743027,7.064e-05,2]
[407777652,1772793045100,-160.0,7.074e-05,3]
[407777653,1772793045111,-345.01964306,7.078e-05,2]
[407777654,1772793045122,-4832.34610463,7.078e-05,2]
[407777655,1772793045131,-152.39,7.1e-05,2]
[407777656,1772793045140,-638.0,7.16e-05,2]
[407777657,1772793045151,-2189.0,7.16e-05,2]
[407777658,1772793045161,-731.0,7.16e-05,2]
[407777659,1772793045170,-150.21,7.2e-05,2]
[407777660,1772793045181,-954.42107942,7.24e-05,2]
[407777661,1772793045191,-3500.0,7.24e-05,2]
[407777662,1772793045201,-3500.0,7.24e-05,2]
[407777663,1772793045211,-883.67028723,7.24e-05,2]
[407777664,1772793045221,-3500.0,7.24e-05,2]
[407777665,1772793045230,-3500.0,7.24e-05,2]
[407777666,1772793045239,-3500.0,7.24e-05,2]
[407777667,1772793045248,-1567.71336261,7.24e-05,2]
[407777668,1772793045258,-3500.0,7.24e-05,2]
[407777669,1772793045267,-3500.0,7.24e-05,2]
[407777670,1772793045276,-3500.0,7.24e-05,2]
[407777671,1772793045286,-222.16145,7.245e-05,2]
[407777672,1772793045295,-3000.0,7.247e-05,2]
[407777673,1772793045304,-3000.0,7.257e-05,2]
[407777674,1772793045313,-668.65185757,7.262e-05,2]
[407777675,1772793045322,-160.0,7.343e-05,4]
[407777676,1772793045332,-1000.0,7.393e-05,2]
[407777677,1772793045341,-791.0,7.393e-05,2]
[407777678,1772793045351,-600.0,7.397e-05,2]
[407777679,1772793045362,-152.39,7.4e-05,2]
[407777680,1772793045374,-805.4076841,7.45e-05,15]
[407777681,1772793045383,-153.36,7.5e-05,2]
[407777682,1772793045392,-177.89,7.5e-05,2]
[407777683,1772793045400,-152.2,7.5e-05,2]
[407777684,1772793045410,-160.0,7.5e-05,2]
[407777685,1772793045419,-160.0,7.5e-05,2]
[407777686,1772793045431,-260.82887304,7.523e-05,10]
[407777687,1772793045441,-152.39,7.6e-05,2]
[407777688,1772793045452,-2773.56790519,7.612e-05,2]
[407777689,1772793045461,-160.0,7.613e-05,5]
[407777690,1772793045472,-194.85274965,7.68e-05,2]
[407777691,1772793045481,-4000.0,7.788e-05,2]
[407777692,1772793045491,-4000.0,7.788e-05,2]
[407777693,1772793045500,-4000.0,7.788e-05,2]
[407777694,1772793045509,-4000.0,7.788e-05,2]
[407777695,1772793045518,-4000.0,7.788e-05,2]
[407777696,1772793045527,-4000.0,7.788e-05,2]
[407777697,1772793045536,-4000.0,7.788e-05,2]
[407777698,1772793045545,-3059.47907016,7.788e-05,2]
[407777699,1772793045554,-3500.0,7.795e-05,2]
[407777700,1772793045563,-150.21,7.8e-05,2]
[407777701,1772793045572,-3500.0,7.805e-05,2]
[407777702,1772793045583,-292.84518488,7.81e-05,2]
[407777703,1772793045595,-805.4076841,7.822e-05,17]
[407777704,1772793045604,-160.0,7.883e-05,6]
[407777705,1772793045613,-152.39,7.9e-05,2]
[407777706,1772793045622,-900.0,7.945e-05,2]
[407777707,1772793045633,-400.81559573,7.95e-05,2]
[407777708,1772793045641,-174.17459299,8.081e-05,2]
[407777709,1772793045651,-152.39,8.1e-05,2]
[407777710,1772793045661,-152.2,8.1e-05,2]
[407777711,1772793045674,-1000.0,8.133e-05,2]
[407777712,1772793045684,-1000.0,8.133e-05,2]
[407777713,1772793045694,-186.5952388,8.15e-05,2]
[407777714,1772793045703,-160.0,8.152e-05,7]
[407777715,1772793045713,-2876.18991768,8.16e-05,2]
[407777716,1772793045722,-805.4076841,8.193e-05,18]
[407777717,1772793045731,-500.0,8.219e-05,2]
[407777718,1772793045740,-544.11958372,8.219e-05,2]
[407777719,1772793045749,-500.0,8.219e-05,2]
[407777720,1772793045758,-500.0,8.219e-05,2]
[407777721,1772793045767,-500.0,8.219e-05,2]
[407777722,1772793045776,-500.0,8.219e-05,2]
[407777723,1772793045785,-150.42227344,8.219e-05,2]
[407777724,1772793045794,-151.41801391,8.219e-05,2]
[407777725,1772793045803,-151.0011462,8.219e-05,2]
[407777726,1772793045812,-500.0,8.219e-05,2]
[407777727,1772793045822,-500.0,8.219e-05,2]
[407777728,1772793045833,-500.0,8.219e-05,2]
[407777729,1772793045842,-500.0,8.219e-05,2]
[407777730,1772793045851,-151.80129447,8.219e-05,2]
[407777731,1772793045860,-168.59623205,8.219e-05,2]
[407777732,1772793045869,-500.0,8.219e-05,2]
[407777733,1772793045879,-151.0,8.219e-05,2]
[407777734,1772793045888,-151.0,8.219e-05,2]
[407777735,1772793045898,-151.0,8.219e-05,2]
[407777736,1772793045907,-151.0,8.219e-05,2]
[407777737,1772793045917,-151.0,8.219e-05,2]
[407777738,1772793045927,-151.0,8.219e-05,2]
[407777739,1772793045937,-151.0,8.219e-05,2]
[407777740,1772793045947,-174.826393,8.219e-05,2]
[407777742,1772793045956,-500.0,8.274e-05,2]
[407777743,1772793045966,-500.0,8.274e-05,2]
[407777744,1772793045975,-500.0,8.274e-05,2]
[407777745,1772793045985,-151.75558952,8.274e-05,2]
[407777746,1772793045996,-154.68607819,8.274e-05,2]
[407777747,1772793046006,-500.0,8.274e-05,2]
[407777748,1772793046015,-153.36,8.3e-05,2]
[407777749,1772793046025,-152.39,8.3e-05,2]
[407777751,1772793046035,-150.21,8.3e-05,2]
[407777753,1772793046044,-488.0,8.3e-05,2]
[407777754,1772793046052,-508.98555873,8.329e-05,2]
[407777755,1772793046062,-193.4090771,8.329e-05,2]
[407777756,1772793046071,-500.0,8.329e-05,2]
[407777757,1772793046080,-500.0,8.329e-05,2]
[407777758,1772793046091,-4500.0,8.336e-05,2]
[407777759,1772793046100,-4500.0,8.336e-05,2]
[407777760,1772793046109,-1485.11238141,8.336e-05,2]
[407777762,1772793046120,-2580.87363565,8.336e-05,2]
[407777763,1772793046129,-4500.0,8.336e-05,2]
[407777764,1772793046139,-4500.0,8.336e-05,2]
[407777765,1772793046148,-4500.0,8.336e-05,2]
[407777767,1772793046157,-4000.0,8.343e-05,2]
[407777769,1772793046166,-4000.0,8.353e-05,2]
[407777771,1772793046175,-38000.0,8.365e-05,2]
[407777773,1772793046183,-6074.95999288,8.374e-05,2]
[407777775,1772793046198,-3534.45,8.374e-05,2]
[407777792,1772793046388,-469.07870949,8.374e-05,2]
[407777794,1772793046402,-752.23301139,8.374e-05,2]
[407777809,1772793046550,-1980.09561515,8.374e-05,2]
[407777823,1772793046691,-25189.18267109,8.374e-05,2]
[407777825,1772793046700,-33602.79359518,8.374e-05,2]
[407777828,1772793046717,-4397.20640482,8.374e-05,2]
[407777830,1772793046726,-1926.39821228,8.383e-05,2]
[407777877,1772793839627,8190.19034706,0.0001,30]
[407777880,1772793969596,-254.35644307,3.854e-05,2]
[407777881,1772793969616,-254.35644307,3.874e-05,2]
[407777904,1772794153598,3523.12623204,8.9e-05,120]
[407777938,1772794231503,-177.158409,4.196e-05,2]
[407777940,1772794231513,-505.841591,4.375e-05,2]
[407777942,1772794231523,-294.158409,4.375e-05,2]
[407777944,1772794231532,-800.0,4.419e-05,2]
[407777946,1772794231541,-1200.0,4.508e-05,2]
[407777948,1772794231551,-300.0,4.509e-05,2]
[407777950,1772794231561,-300.0,4.509e-05,2]
[407777952,1772794231570,-300.0,4.509e-05,2]
[407777954,1772794231580,-750.873,4.51e-05,2]
[407777956,1772794231589,-452.177,4.51e-05,2]
[407777958,1772794231600,-2189.0,4.51e-05,2]
[407777960,1772794231610,-433.0,4.51e-05,2]
[407777962,1772794231619,-300.0,4.599e-05,2]
[407777964,1772794231629,-300.0,4.599e-05,2]
[407777966,1772794231638,-300.0,4.599e-05,2]
[407777968,1772794231648,-300.0,4.599e-05,2]
[407777970,1772794231657,-300.0,4.599e-05,2]
[407777972,1772794231666,-300.0,4.599e-05,2]
[407777974,1772794231675,-300.0,4.599e-05,2]
[407777976,1772794231685,-300.0,4.599e-05,2]
[407777978,1772794231695,-300.0,4.599e-05,2]
[407777980,1772794231704,-300.0,4.599e-05,2]
[407777982,1772794231713,-300.0,4.599e-05,2]
[407777984,1772794231722,-300.0,4.599e-05,2]
[407777986,1772794231732,-300.0,4.599e-05,2]
[407777988,1772794231742,-300.0,4.599e-05,2]
[407777990,1772794231751,-300.0,4.599e-05,2]
[407777992,1772794231760,-223.20124947,4.6e-05,2]
[407777994,1772794231770,-600.0,4.69e-05,2]
[407777996,1772794231779,-2150.738,4.753e-05,2]
[407777998,1772794231789,-1680.0,4.959e-05,2]
[407778000,1772794231798,-420.0,4.96e-05,2]
[407778002,1772794231808,-500.0,5.023e-05,2]
[407778004,1772794231817,-500.0,5.023e-05,2]
[407778006,1772794231826,-500.0,5.023e-05,2]
[407778008,1772794231836,-500.0,5.023e-05,2]
[407778010,1772794231845,-500.0,5.043e-05,2]
[407778012,1772794231855,-500.0,5.043e-05,2]
[407778014,1772794231864,-189.31077007,5.043e-05,2]
[407778016,1772794231873,-500.0,5.043e-05,2]
[407778018,1772794231883,-500.0,5.043e-05,2]
[407778020,1772794231892,-500.0,5.043e-05,2]
[407778022,1772794231902,-315.48660515,5.043e-05,2]
[407778024,1772794231911,-500.0,5.043e-05,2]
[407778026,1772794231920,-500.0,5.043e-05,2]
[407778028,1772794231934,-500.0,5.043e-05,2]
[407778030,1772794231944,-500.0,5.043e-05,2]
[407778032,1772794231953,-500.0,5.043e-05,2]
[407778034,1772794231962,-500.0,5.043e-05,2]
[407778036,1772794231973,-500.0,5.043e-05,2]
[407778038,1772794231982,-500.0,5.043e-05,2]
[407778040,1772794231992,-546.87740546,5.043e-05,2]
[407778042,1772794232001,-500.0,5.043e-05,2]
[407778044,1772794232012,-500.0,5.043e-05,2]
[407778046,1772794232021,-291.49474423,5.043e-05,2]
[407778048,1772794232030,-500.0,5.043e-05,2]
[407778050,1772794232040,-19693.88415798,5.044e-05,2]
[407778053,1772794232052,-1892.4825131,5.044e-05,2]
[407778055,1772794232063,-1324.44791251,5.044e-05,2]
[407778159,1772794237921,-177.158409,4.154e-05,2]
[407778161,1772794237939,-5343.87775614,5.044e-05,2]
[407778164,1772794237956,-6302.42641611,5.044e-05,2]
[407778167,1772794237979,-1644050.6248117,5.044e-05,2]
[407778170,1772794237997,-10653.1402446,5.044e-05,2]
[407778173,1772794238018,-4248.32795475,5.044e-05,2]
[407778367,1772794240163,-1104.62856212,5.044e-05,2]
[407778881,1772794245573,-26102.6700552,5.044e-05,2]
[407778912,1772794392282,269.072834,5.1e-05,30]
[407778919,1772794484555,7200.0,0.0001,30]
[407779056,1772795275833,949.2231244,0.00010512,120]
[407779098,1772795431676,-159.494274,3.334e-05,2]
[407779100,1772795431696,-159.494274,3.368e-05,2]
[407779103,1772795431716,-249.26931421,3.454e-05,2]
[407779105,1772795431733,-159.494274,3.506e-05,2]
[407779108,1772795431746,-1200.0,4.199e-05,2]
[407779109,1772795431766,-2271.30845333,4.2e-05,3]
[407779110,1772795431781,-5617.94166613,4.2e-05,3]
[407779111,1772795431801,-4696.18746657,4.2e-05,3]
[407779112,1772795431816,-5704.28067474,4.2e-05,3]
[407779113,1772795431830,-5200.2340706,4.2e-05,3]
[407779114,1772795431845,-500.0,4.273e-05,2]
[407779115,1772795431860,-500.0,4.273e-05,2]
[407779116,1772795431876,-500.0,4.273e-05,2]
[407779117,1772795431891,-500.0,4.273e-05,2]
[407779118,1772795431907,-500.0,4.273e-05,2]
[407779119,1772795431922,-500.0,4.273e-05,2]
[407779120,1772795431938,-500.0,4.273e-05,2]
[407779121,1772795431954,-38235.51223047,4.3e-05,2]
[407779122,1772795431972,-3169.1363388,4.3e-05,2]
[407779322,1772795440395,-949.42574208,4.257e-05,2]
[407779649,1772795445765,-3009.6420648,4.214e-05,2]
[407779650,1772795445776,-7985.12714859,4.257e-05,2]
[407779651,1772795445787,-47131.89510503,4.3e-05,2]
[407779652,1772795445818,-8025.17483751,4.3e-05,2]
[407779712,1772796631860,-1744.52839776,3.698e-05,2]
[407779824,1772796638012,-890.51160224,3.661e-05,2]
[407779826,1772796638023,-399.19481712,3.698e-05,2]
[407779828,1772796638034,-491.31678512,3.698e-05,2]
[407779830,1772796638055,-252.30023984,3.717e-05,2]
[407779833,1772796638074,-300.0,3.972e-05,2]
[407779834,1772796638094,-300.0,3.972e-05,2]
[407779837,1772796638112,-1200.0,3.972e-05,2]
[407779839,1772796638121,-500.0,3.973e-05,2]
[407779841,1772796638130,-500.0,3.973e-05,2]
[407779843,1772796638140,-500.0,3.973e-05,2]
[407779845,1772796638149,-500.0,3.973e-05,2]
[407779847,1772796638158,-479.69989179,3.973e-05,2]
[407780103,1772796640562,-20.30010821,3.973e-05,2]
[407780105,1772796640572,-446.79981622,3.973e-05,2]
[407780241,1772796644451,-53.20018378,3.973e-05,2]
[407780242,1772796644460,-500.0,3.973e-05,2]
[407780243,1772796644470,-500.0,3.973e-05,2]
[407780244,1772796644479,-500.0,3.973e-05,2]
[407780245,1772796644490,-1679.69989179,4e-05,2]
[407780252,1772796645878,-76515.21527579,4e-05,2]
[407780253,1772796645890,-28485.33032916,4e-05,2]
[407780254,1772796645985,-11921.31904333,4e-05,2]
[407780264,1772797135788,-177.158409,3.135e-05,2]
[407780265,1772797135821,-177.158409,3.167e-05,2]
[407780266,1772797135854,-177.158409,3.199e-05,2]
[407780267,1772797135888,-177.158409,3.33e-05,2]
[407780268,1772797135921,-266.01790121,3.606e-05,2]
[407780269,1772797135958,-1025.34846279,3.9e-05,2]
[407780270,1772797137787,-2000.0,3.9e-05,2]
[407780271,1772797139439,-2000.0,3.9e-05,2]
[407780272,1772797139848,-2000.0,3.9e-05,2]
[407780273,1772797141191,-2000.0,3.9e-05,2]
[407780274,1772797141236,-2000.0,3.9e-05,2]
[407780275,1772797141278,-2000.0,3.9e-05,2]
[407780276,1772797141329,-2000.0,3.861e-05,2]
[407780277,1772797141745,-2000.0,3.861e-05,2]
[407780278,1772797142169,-2000.0,3.861e-05,2]
[407780279,1772797142471,-2000.0,3.861e-05,2]
[407780280,1772797143701,-510.60781539,3.861e-05,2]
[407780281,1772797143721,-300.0,3.899e-05,2]
[407780282,1772797143744,-1189.39218461,3.9e-05,2]
[407780283,1772797144160,-2000.0,3.9e-05,2]
[407780284,1772797144622,-2000.0,3.9e-05,2]
[407780285,1772797144930,-2000.0,3.9e-05,2]
[407780286,1772797145428,-260.69754319,3.881e-05,2]
[407780287,1772797145452,-1739.30245681,3.9e-05,2]
[407780288,1772797145685,-2000.0,3.9e-05,2]
[407780289,1772797146044,-2000.0,3.9e-05,2]
[407780290,1772797147284,-2000.0,3.9e-05,2]
[407780291,1772797148621,-2000.0,3.9e-05,2]
[407780292,1772797149539,-2000.0,3.861e-05,2]
[407780293,1772797153000,-2000.0,3.861e-05,2]
[407780294,1772797201201,-1400.0,3.822e-05,2]
[407780297,1772797311142,1000.0,0.0001,30]
[407780316,1772797346408,-2000.0,3.784e-05,2]
[407780317,1772797347971,-1422.841591,3.784e-05,2]
[407780318,1772797349159,577.158409,3.746e-05,2]
[407780319,1772797352377,-2000.0,3.746e-05,2]
[407780320,1772797353423,-845.683182,3.746e-05,2]
[407780321,1772797370860,-2000.0,3.79e-05,2]
[407780322,1772797374540,-905.02379758,3.79e-05,2]
[407780323,1772797429069,-631.9,3.79e-05,2]
[407780325,1772797522176,-585.1,3.79e-05,2]
[407780342,1772797569413,-585.2,3.79e-05,2]
[407780343,1772797569437,-237.78615043,3.8e-05,2]
[407780344,1772797569459,-393.6362697,3.8e-05,2]
[407780345,1772797569481,-364.71673508,3.8e-05,2]
[407780346,1772797569502,-418.66084479,3.8e-05,2]
[407780352,1772797721361,-291.93764694,3.7e-05,2]
[407780353,1772797721384,-495.8225206,3.7e-05,2]
[407780354,1772797721406,-538.93276236,3.7e-05,2]
[407780355,1772797721427,-500.0,3.773e-05,2]
[407780356,1772797721448,-173.3070701,3.773e-05,2]
[407780357,1772797722712,-326.6929299,3.773e-05,2]
[407780358,1772797722734,-500.0,3.773e-05,2]
[407780359,1772797722756,-500.0,3.773e-05,2]
[407780360,1772797722777,-500.0,3.773e-05,2]
[407780361,1772797722798,-173.3070701,3.773e-05,2]
[407780362,1772797723984,-326.6929299,3.773e-05,2]
[407780363,1772797724008,-500.0,3.773e-05,2]
[407780364,1772797724030,-500.0,3.773e-05,2]
[407780365,1772797724051,-500.0,3.773e-05,2]
[407780366,1772797724073,-173.3070701,3.773e-05,2]
[407780367,1772797725188,-326.6929299,3.773e-05,2]
[407780368,1772797725210,-877.7,3.79e-05,2]
[407780369,1772797725236,-300.0,3.799e-05,2]
[407780370,1772797725261,-7.51919337,3.8e-05,2]
[407780371,1772797725287,-488.08787673,3.8e-05,2]
[407780372,1772797726555,-2000.0,3.8e-05,2]
[407780411,1772797838262,-185.61365583,3.7e-05,2]
[407780412,1772797838272,-386.64634817,3.773e-05,2]
[407780413,1772797838284,-113.35365183,3.773e-05,2]
[407780414,1772797838293,-500.0,3.773e-05,2]
[407780415,1772797838303,-500.0,3.773e-05,2]
[407780416,1772797838312,-8.60373977,3.773e-05,2]
[407780636,1772797840583,-491.39626023,3.773e-05,2]
[407780638,1772797840592,-500.0,3.773e-05,2]
[407780640,1772797840602,-500.0,3.773e-05,2]
[407780642,1772797840611,-500.0,3.773e-05,2]
[407780644,1772797840621,-255.48359232,3.786e-05,2]
[407780646,1772797840630,-300.0,3.799e-05,2]
[407780648,1772797840639,-1151.0,3.799e-05,2]
[407780650,1772797840648,-24489.08914865,3.8e-05,2]
[407780893,1772797843239,-5582.34447543,3.8e-05,2]
[407781182,1772797846060,-633.09,3.8e-05,2]
[407781184,1772797846071,-1872.93,3.8e-05,2]
[407781186,1772797846082,-14573.55864179,3.8e-05,2]
[407781191,1772797846114,-6399.53624985,3.8e-05,2]
[407785874,1772798437520,-151.0,2.253e-05,2]
[407785877,1772798533338,-258.78665875,2.22e-05,2]
[407785878,1772798533360,-258.78665875,2.242e-05,2]
[407785879,1772798533383,-258.78665875,2.265e-05,2]
[407785880,1772798533406,-300.0,2.299e-05,2]
[407785881,1772798533428,-923.64002375,2.3e-05,2]
[407785882,1772798534951,-2000.0,2.3e-05,2]
[407785883,1772798535226,-2000.0,2.3e-05,2]
[407785884,1772798535632,-2000.0,2.3e-05,2]
[407785885,1772798536086,-2000.0,2.3e-05,2]
[407785886,1772798536497,-2000.0,2.3e-05,2]
[407785887,1772798536794,-2000.0,2.3e-05,2]
[407785888,1772798537217,-2000.0,2.3e-05,2]
[407785889,1772798537521,-2000.0,2.3e-05,2]
[407785890,1772798537928,-2000.0,2.3e-05,2]
[407785891,1772798538219,-2000.0,2.3e-05,2]
[407785892,1772798538622,-169.68263797,2.3e-05,2]
[407785893,1772798538652,-300.0,2.345e-05,2]
[407785894,1772798538683,-300.0,2.345e-05,2]
[407785895,1772798538713,-300.0,2.345e-05,2]
[407785896,1772798538747,-300.0,2.345e-05,2]
[407785897,1772798538778,-300.0,2.345e-05,2]
[407785898,1772798538810,-300.0,2.345e-05,2]
[407785899,1772798538841,-30.31736203,2.345e-05,2]
[407785900,1772798539631,-269.68263797,2.345e-05,2]
[407785901,1772798539661,-300.0,2.345e-05,2]
[407785902,1772798539692,-300.0,2.345e-05,2]
[407785903,1772798539722,-300.0,2.345e-05,2]
[407785904,1772798539752,-300.0,2.345e-05,2]
[407785905,1772798539783,-300.0,2.345e-05,2]
[407785906,1772798539812,-230.31736203,2.345e-05,2]
[407785907,1772798539905,-69.68263797,2.345e-05,2]
[407785908,1772798539934,-300.0,2.345e-05,2]
[407785909,1772798539968,-300.0,2.345e-05,2]
[407785910,1772798540000,-600.0,2.391e-05,2]
[407785911,1772798540026,-420.0,2.529e-05,2]
[407785912,1772798540055,-310.31736203,2.63e-05,2]
[407785913,1772798540137,-409.68263797,2.63e-05,2]
[407785914,1772798540166,-587.0,2.782e-05,2]
[407785915,1772798540193,-1003.31736203,2.857e-05,2]
[407785916,1772798540384,-449.51478677,2.857e-05,2]
[407785917,1772798540413,-325.75904333,2.89e-05,2]
[407785918,1772798540444,-864.0,2.893e-05,2]
[407785919,1772798540474,-360.7261699,3e-05,2]
[407785928,1772798571013,-1866.34160195,2.97e-05,2]
[407785929,1772798571037,-133.65839805,3e-05,2]
[407785930,1772798573438,-2000.0,3e-05,2]
[407785931,1772798574474,-2000.0,3e-05,2]
[407785932,1772798575410,-505.61543205,3e-05,2]
[407785934,1772798627889,-2000.0,3.029e-05,2]
[407785935,1772798629541,-2000.0,3.029e-05,2]
[407785936,1772798630445,-590.21334125,3.029e-05,2]
[407785937,1772798630467,-810.6,3.5e-05,2]
[407785938,1772798630489,-300.0,3.568e-05,2]
[407785939,1772798630513,-299.18665875,3.569e-05,2]
[407785940,1772798631395,-0.81334125,3.569e-05,2]
[407785941,1772798631418,-300.0,3.569e-05,2]
[407785942,1772798631441,-300.0,3.569e-05,2]
[407785943,1772798631463,-300.0,3.569e-05,2]
[407785944,1772798631488,-300.0,3.569e-05,2]
[407785945,1772798631510,-300.0,3.569e-05,2]
[407785946,1772798631533,-300.0,3.569e-05,2]
[407785947,1772798631555,-199.18665875,3.569e-05,2]
[407785948,1772798633594,-100.81334125,3.569e-05,2]
[407785949,1772798633627,-300.0,3.569e-05,2]
[407785950,1772798633661,-300.0,3.569e-05,2]
[407785951,1772798633696,-300.0,3.569e-05,2]
[407785952,1772798633731,-300.0,3.569e-05,2]
[407785953,1772798633764,-300.0,3.569e-05,2]
[407785954,1772798633799,-300.0,3.569e-05,2]
[407785955,1772798633832,-99.18665875,3.569e-05,2]
[407785956,1772798634321,-200.81334125,3.569e-05,2]
[407785957,1772798634365,-600.0,3.639e-05,2]
[407785958,1772798634403,-222.16145,3.663e-05,2]
[407785959,1772798634442,-500.0,3.673e-05,2]
[407785960,1772798634477,-477.02520875,3.673e-05,2]
[407785961,1772798636262,-22.97479125,3.673e-05,2]
[407785962,1772798636295,-500.0,3.673e-05,2]
[407785963,1772798636326,-500.0,3.673e-05,2]
[407785964,1772798636356,-500.0,3.673e-05,2]
[407785965,1772798636393,-477.02520875,3.673e-05,2]
[407785966,1772798637001,-22.97479125,3.673e-05,2]
[407785967,1772798637033,-500.0,3.673e-05,2]
[407785968,1772798637064,-500.0,3.673e-05,2]
[407785969,1772798637095,-500.0,3.673e-05,2]
[407785970,1772798637128,-477.02520875,3.673e-05,2]
[407785971,1772798638360,-22.97479125,3.673e-05,2]
[407785972,1772798638391,-500.0,3.673e-05,2]
[407785973,1772798638420,-500.0,3.673e-05,2]
[407785974,1772798638450,-500.0,3.673e-05,2]
[407785975,1772798638479,-477.02520875,3.673e-05,2]
[407785976,1772798645684,-22.97479125,3.673e-05,2]
[407785977,1772798645706,-300.0,3.699e-05,2]
[407785978,1772798645727,-844.2,3.7e-05,2]
[407785979,1772798645750,-167.01666571,3.7e-05,2]
[407785980,1772798645774,-191.78888391,3.7e-05,2]
[407785981,1772798645797,-197.4017325,3.7e-05,2]
[407785982,1772798645820,-203.71952756,3.7e-05,2]
[407785983,1772798645846,-72.89839907,3.7e-05,2]
[407785984,1772798656590,-163.39966775,3.595e-05,2]
[407785985,1772798656613,-500.0,3.673e-05,2]
[407785986,1772798656634,-500.0,3.673e-05,2]
[407785987,1772798656656,-500.0,3.673e-05,2]
[407785988,1772798656676,-336.60033225,3.673e-05,2]
[407785995,1772798794439,-254.35644307,3.537e-05,2]
[407785996,1772798794459,-500.0,3.553e-05,2]
[407785997,1772798794478,-500.0,3.553e-05,2]
[407785998,1772798794498,-500.0,3.553e-05,2]
[407785999,1772798794518,-500.0,3.553e-05,2]
[407786000,1772798794539,-500.0,3.553e-05,2]
[407786001,1772798794558,-500.0,3.553e-05,2]
[407786002,1772798794578,-500.0,3.553e-05,2]
[407786003,1772798794600,-258.69805443,3.555e-05,2]
[407786004,1772798794620,-300.0,3.572e-05,2]
[407786005,1772798794643,-4686.9455025,3.573e-05,2]
[407786006,1772798825523,-500.0,3.553e-05,2]
[407786007,1772798825544,-500.0,3.553e-05,2]
[407786008,1772798825564,-500.0,3.553e-05,2]
[407786009,1772798825584,-500.0,3.553e-05,2]
[407786010,1772798825604,-500.0,3.553e-05,2]
[407786011,1772798825626,-500.0,3.553e-05,2]
[407786012,1772798825647,-300.0,3.572e-05,2]
[407786013,1772798825672,-5700.0,3.573e-05,2]
[407786016,1772798837150,-500.0,3.553e-05,2]
[407786017,1772798837175,-500.0,3.573e-05,2]
[407786018,1772798840803,-2000.0,3.573e-05,2]
[407786019,1772798841762,-2000.0,3.573e-05,2]
[407786020,1772798842115,-2000.0,3.573e-05,2]
[407786021,1772798843273,-2000.0,3.573e-05,2]
[407786022,1772798843341,-2000.0,3.573e-05,2]
[407786023,1772798843425,-2000.0,3.573e-05,2]
[407786024,1772798843731,-2000.0,3.573e-05,2]
[407786025,1772798844054,-2000.0,3.573e-05,2]
[407786026,1772798844405,-2000.0,3.573e-05,2]
[407786027,1772798844746,-2000.0,3.573e-05,2]
[407786028,1772798845213,-2000.0,3.573e-05,2]
[407786029,1772798845384,-2000.0,3.573e-05,2]
[407786030,1772798845817,-2000.0,3.573e-05,2]
[407786031,1772798846213,-2000.0,3.573e-05,2]
[407786032,1772798846379,-2000.0,3.573e-05,2]
[407786033,1772798846769,-2000.0,3.573e-05,2]
[407786034,1772798847240,-2000.0,3.573e-05,2]
[407786035,1772798847531,-2000.0,3.573e-05,2]
[407786036,1772798847902,-2000.0,3.573e-05,2]
[407786037,1772798848221,-2000.0,3.573e-05,2]
[407786038,1772798848636,-2000.0,3.573e-05,2]
[407786039,1772798849072,-2000.0,3.573e-05,2]
[407786040,1772798849508,-2000.0,3.573e-05,2]
[407786041,1772798849963,-2000.0,3.573e-05,2]
[407786042,1772798850298,-2000.0,3.573e-05,2]
[407786043,1772798850584,-2000.0,3.573e-05,2]
[407786044,1772798851419,-2000.0,3.573e-05,2]
[407786045,1772798851836,-2000.0,3.573e-05,2]
[407786046,1772798852267,-2000.0,3.573e-05,2]